[Event "Kragero Resort A 2020"]
[Site "Kragero"]
[Date "2020.02.21"]
[Round "5.13"]
[White "Vrolijk, Liam"]
[Black "Stanford, Maxim Barth"]
[Result "1-0"]
[ECO "E15"]
[WhiteElo "2501"]
[BlackElo "2339"]
[Annotator "RC"]
[PlyCount "99"]
[EventDate "2020.02.19"]
[EventType "swiss"]
[EventCountry "NOR"]
[SourceTitle "playchess.com"]
[Source "ChessBase"]
[SourceQuality "1"]
[TimeControl "5400+30"]

1. d4 {[%emt 0:01:12]} Nf6 {[%emt 0:00:00]} 2. c4 {[%emt 0:00:08]} e6 {[%emt 0:00:04]} 3. Nf3 {[%emt 0:00:07]} b6 {[%emt 0:00:18]} 4. g3 {[%emt 0:00:48]} Ba6 {[%emt 0:00:16]} 5. Qc2 {[%emt 0:01:45]} Bb4+ {[%emt 0:00:54]} 6. Bd2 {[%emt 0:02:12]} Qe7 {[%emt 0:04:02]} 7. e4 {[%emt 0:04:43]} Bb7 {[%emt 0:03:00]} 8. Bd3 {[%emt 0:01:13]} Nc6 {[%emt 0:08:50]} 9. a3 {[%emt 0:03:56]} Bxd2+ {[%emt 0:00:24]} 10. Nbxd2 {[%emt 0:00:36]} e5 {[%emt 0:02:34]} 11. d5 {[%emt 0:01:47]} Nd8 {[%emt 0:03:20]} 12. O-O {[%emt 0:06:25]} d6 {[%emt 0:02:31]} 13. b4 {[%emt 0:01:39]} c5 {[%emt 0:04:22]} 14. bxc5 {[%emt 0:04:42]} bxc5 {[%emt 0:03:03]} 15. Rab1 {[%emt 0:00:31]} Bc8 {[%emt 0:02:52]} 16. Qa4+ {[%emt 0:18:37]} Bd7 {[%emt 0:01:09]} 17. Qa5 {[%emt 0:00:38]} Bh3 {[%emt 0:00:59]} 18. Rfe1 {[%emt 0:00:15]} O-O {[%emt 0:00:39]} 19. Rb2 {[%emt 0:00:52]} Nh5 {[%emt 0:10:09]} 20. Reb1 {[%emt 0:04:27]} Rc8 {[%emt 0:10:53]} 21. Qa6 {[%emt 0:08:28]} g6 {[%emt 0:16:21]} 22. Rb8 {[%emt 0:04:52]} Rc7 {[%emt 0:00:59]} 23. Bf1 {[%emt 0:03:23]} Bxf1 {[%emt 0:01:35]} 24. Kxf1 {[%emt 0:01:23]} f5 {[%emt 0:00:30]} 25. R1b3 {[%emt 0:02:04]} Nf6 {[%emt 0:05:22]} 26. exf5 {[%emt 0:02:00]} gxf5 {[%emt 0:00:19]} 27. Nh4 {[%emt 0:01:51]} Ne4 {[%emt 0:01:45]} 28. Ndf3 {[%emt 0:02:19]} Qf6 {[%emt 0:03:45]} 29. Rc8 {[%emt 0:02:45]} Rd7 {[%emt 0:04:50]} 30. Qa4 {[%emt 0:00:52]} Rdf7 {[%emt 0:01:03]} 31. Qa5 {[%emt 0:04:39]} f4 {[%emt 0:01:03]} 32. g4 {[%emt 0:01:10]} Ng5 {[%emt 0:02:43]} 33. Nxg5 {[%emt 0:01:17]} Qxg5 {[%emt 0:00:07]} 34. Nf5 {[%emt 0:03:03]} e4 {[%emt 0:02:21]} 35. h4 {[%emt 0:03:30]} Qf6 {[%emt 0:01:06]} 36. Qd2 {[%emt 0:01:36]} e3 {[%emt 0:02:44]} 37. fxe3 {[%emt 0:00:44]} h5 {[%emt 0:00:33]} 38. e4 {[%emt 0:01:05]} Qa1+ {[%emt 0:00:48]} 39. Qe1 {[%emt 0:01:14]} Qa2 {[%emt 0:00:04]} 40. Rf3 {[%emt 0:00:33]} hxg4 {[%emt 0:00:58]} 41. Rxf4 {[%emt 0:00:34]} Qxc4+ {[%emt 0:00:04]} 42. Kg2 {[%emt 0:00:37]} Kh7 {[%emt 0:00:03]} 43. Qe3 {[%emt 0:00:59]} Rf6 {[%emt 0:01:28]} 44. Kg3 {[%emt 0:00:55]} Qa6 {[%emt 0:00:27]} 45. Rc7+ {[%emt 0:00:22]} R8f7 {[%emt 0:00:05]} 46. Rxf7+ {[%emt 0:00:47]} Nxf7 {[%emt 0:00:03]} 47. Rxg4 {[%emt 0:00:34]} Rg6 {[%emt 0:01:04]} 48. Rxg6 {[%emt 0:00:43]} Kxg6 {[%emt 0:00:01]} 49. Kf2 {[%emt 0:00:24]} Kh7 {[%emt 0:01:28]} 50. Qg3 {[%emt 0:00:11]} 1-0

[Event "Kragero Resort A 2020"]
[Site "Kragero"]
[Date "2020.02.21"]
[Round "5.15"]
[White "Kaasen, Tor Fredrik"]
[Black "Ranaldi, Lucas"]
[Result "1-0"]
[ECO "E18"]
[WhiteElo "2393"]
[BlackElo "2302"]
[Annotator "ChessBase"]
[PlyCount "87"]
[EventDate "2020.02.19"]
[EventType "swiss"]
[EventCountry "NOR"]
[SourceTitle "playchess.com"]
[Source "ChessBase"]
[SourceQuality "1"]
[TimeControl "5400+30"]

1. d4 {[%emt 0:03:18]} Nf6 {[%emt 0:00:00]} 2. c4 {[%emt 0:00:17]} e6 {[%emt 0:00:00]} 3. Nf3 {[%emt 0:00:15]} b6 {[%emt 0:00:00]} 4. g3 {[%emt 0:01:40]} Bb7 {[%emt 0:00:00]} 5. Bg2 {[%emt 0:00:12]} Be7 {[%emt 0:00:01]} 6. O-O {[%emt 0:00:57]} O-O {[%emt 0:00:15]} 7. Nc3 {[%emt 0:00:11]} Ne4 {[%emt 0:00:06]} 8. Bd2 {[%emt 0:00:32]} f5 {[%emt 0:00:09]} 9. Qc2 {[%emt 0:00:20]} Bf6 {[%emt 0:01:15]} 10. Rad1 {[%emt 0:01:05]} d6 {[%emt 0:08:38]} 11. Ne1 {[%emt 0:02:15]} Nxc3 {[%emt 0:01:58]} 12. Bxc3 {[%emt 0:00:58]} Bxg2 {[%emt 0:03:49]} 13. Nxg2 {[%emt 0:02:39]} Nd7 {[%emt 0:04:16]} 14. Rfe1 {[%emt 0:05:27]} Re8 {[%emt 0:10:13]} 15. e4 {[%emt 0:10:49]} fxe4 {[%emt 0:01:16]} 16. Rxe4 {[%emt 0:05:04]} e5 {[%emt 0:02:17]} 17. Rde1 {[%emt 0:01:32]} Rf8 {[%emt 0:03:22]} 18. dxe5 {[%emt 0:06:48]} Bxe5 {[%emt 0:00:39]} 19. f4 {[%emt 0:04:18]} Bxc3 {[%emt 0:04:53]} 20. Qxc3 {[%emt 0:01:03]} Nf6 {[%emt 0:24:10]} 21. Re7 {[%emt 0:02:39]} Re8 {[%emt 0:01:48]} 22. Rxe8+ {[%emt 0:01:06]} Nxe8 {[%emt 0:00:02]} 23. Ne3 {[%emt 0:00:15]} Nf6 {[%emt 0:01:35]} 24. Nd5 {[%emt 0:09:49]} Nxd5 {[%emt 0:01:50]} 25. cxd5 {[%emt 0:01:23]} Qd7 {[%emt 0:00:15]} 26. Re6 {[%emt 0:00:43]} Re8 {[%emt 0:01:46]} 27. f5 {[%emt 0:02:07]} Rxe6 {[%emt 0:21:02]} 28. fxe6 {[%emt 0:03:49]} Qa4 {[%emt 0:03:23]} 29. Qf3 {[%emt 0:04:18]} Qe8 {[%emt 0:00:24]} 30. b4 {[%emt 0:01:52]} h6 {[%emt 0:02:30]} 31. b5 {[%emt 0:06:30]} Qe7 {[%emt 0:00:13]} 32. h4 {[%emt 0:00:23]} Qe8 {[%emt 0:00:13]} 33. Qf5 {[%emt 0:01:59]} Qe7 {[%emt 0:00:32]} 34. Kh2 {[%emt 0:00:46]} Qe8 {[%emt 0:00:23]} 35. a4 {[%emt 0:00:25]} Qe7 {[%emt 0:00:54]} 36. Kh3 {[%emt 0:00:11]} Qe8 {[%emt 0:00:45]} 37. g4 {[%emt 0:00:23]} Qe7 {[%emt 0:00:51]} 38. g5 {[%emt 0:00:59]} hxg5 {[%emt 0:00:41]} 39. hxg5 {[%emt 0:00:28]} Qf8 {[%emt 0:02:29]} 40. Kg4 {[%emt 0:00:14]} Qe8 {[%emt 0:00:23]} 41. g6 {[%emt 0:00:41]} Qd8 {[%emt 0:00:40]} 42. Qf7+ {[%emt 0:00:17]} Kh8 {[%emt 0:00:03]} 43. e7 {[%emt 0:00:10]} Qd7+ {[%emt 0:00:16]} 44. Kg3 {[%emt 0:00:09]} 1-0

[Event "Kragero Resort A 2020"]
[Site "Kragero"]
[Date "2020.02.21"]
[Round "5.16"]
[White "Holleland, Sigve"]
[Black "Sriram, Jha"]
[Result "1-0"]
[ECO "A42"]
[WhiteElo "2076"]
[BlackElo "2383"]
[Annotator "ChessBase"]
[PlyCount "119"]
[EventDate "2020.02.19"]
[EventType "swiss"]
[EventCountry "NOR"]
[SourceTitle "playchess.com"]
[Source "ChessBase"]
[SourceQuality "1"]
[TimeControl "5400+30"]

1. d4 {[%emt 0:00:00]} g6 {[%emt 0:03:10]} 2. c4 {[%emt 0:00:00]} Bg7 {[%emt 0:00:08]} 3. Nc3 {[%emt 0:00:01]} d6 {[%emt 0:00:14]} 4. e4 {[%emt 0:00:17]} Nc6 {[%emt 0:03:23]} 5. Nge2 {[%emt 0:03:24]} e5 {[%emt 0:00:46]} 6. d5 {[%emt 0:00:23]} Nce7 {[%emt 0:00:09]} 7. h4 {[%emt 0:05:13]} f5 {[%emt 0:26:38]} 8. h5 {[%emt 0:01:28]} f4 {[%emt 0:00:26]} 9. hxg6 {[%emt 0:03:48]} hxg6 {[%emt 0:00:33]} 10. Rxh8 {[%emt 0:00:11]} Bxh8 {[%emt 0:00:01]} 11. g3 {[%emt 0:03:26]} fxg3 {[%emt 0:04:24]} 12. Nxg3 {[%emt 0:00:15]} Nf6 {[%emt 0:00:10]} 13. Bg5 {[%emt 0:02:00]} Bg4 {[%emt 0:06:14]} 14. f3 {[%emt 0:02:49]} Bd7 {[%emt 0:00:41]} 15. Qd2 {[%emt 0:01:20]} Kf7 {[%emt 0:02:16]} 16. O-O-O {[%emt 0:02:55]} Bg7 {[%emt 0:02:55]} 17. f4 {[%emt 0:05:34]} Nh7 {[%emt 0:02:43]} 18. Be2 {[%emt 0:16:21]} Nxg5 {[%emt 0:06:03]} 19. fxg5 {[%emt 0:00:09]} Bh3 {[%emt 0:00:05]} 20. Qe3 {[%emt 0:06:12]} Qd7 {[%emt 0:00:24]} 21. Qf2+ {[%emt 0:02:08]} Kg8 {[%emt 0:13:14]} 22. Rh1 {[%emt 0:03:00]} Bg4 {[%emt 0:00:29]} 23. Qh2 {[%emt 0:00:51]} Bxe2 {[%emt 0:00:31]} 24. Ncxe2 {[%emt 0:02:34]} Rf8 {[%emt 0:11:29]} 25. Qh7+ {[%emt 0:02:50]} Kf7 {[%emt 0:00:27]} 26. Rf1+ {[%emt 0:00:48]} Ke8 {[%emt 0:00:01]} 27. Qxg7 {[%emt 0:00:39]} Rxf1+ {[%emt 0:00:04]} 28. Nxf1 {[%emt 0:00:16]} Qg4 {[%emt 0:00:09]} 29. Nfg3 {[%emt 0:02:58]} Qxg5+ {[%emt 0:00:05]} 30. Kc2 {[%emt 0:00:55]} Qh4 {[%emt 0:00:14]} 31. c5 {[%emt 0:02:40]} a6 {[%emt 0:02:12]} 32. cxd6 {[%emt 0:04:40]} cxd6 {[%emt 0:00:01]} 33. a4 {[%emt 0:02:04]} b5 {[%emt 0:00:13]} 34. axb5 {[%emt 0:00:23]} axb5 {[%emt 0:00:01]} 35. Kb3 {[%emt 0:00:57]} Qh3 {[%emt 0:11:34]} 36. Qf6 {[%emt 0:02:56]} Qd7 {[%emt 0:00:02]} 37. Nc3 {[%emt 0:05:46]} Qg4 {[%emt 0:00:43]} 38. Qf2 {[%emt 0:02:14]} Qf4 {[%emt 0:01:43]} 39. Qxf4 {[%emt 0:03:58]} exf4 {[%emt 0:00:01]} 40. Nge2 {[%emt 0:00:34]} g5 {[%emt 0:00:13]} 41. Nxb5 {[%emt 0:00:13]} Kd7 {[%emt 0:01:37]} 42. Nbd4 {[%emt 0:00:51]} Ng6 {[%emt 0:01:38]} 43. Kc3 {[%emt 0:00:55]} g4 {[%emt 0:00:22]} 44. Ne6 {[%emt 0:01:57]} f3 {[%emt 0:00:22]} 45. Ng3 {[%emt 0:00:11]} Ne5 {[%emt 0:01:37]} 46. Kd4 {[%emt 0:01:37]} Kc8 {[%emt 0:00:12]} 47. Nf4 {[%emt 0:00:42]} Kc7 {[%emt 0:00:58]} 48. Nd3 {[%emt 0:00:22]} Ng6 {[%emt 0:00:49]} 49. Ke3 {[%emt 0:01:32]} Kb6 {[%emt 0:00:02]} 50. b3 {[%emt 0:01:13]} Kc7 {[%emt 0:00:28]} 51. Nf2 {[%emt 0:00:24]} Ne5 {[%emt 0:00:19]} 52. Kf4 {[%emt 0:00:19]} Kb6 {[%emt 0:00:10]} 53. Nxg4 {[%emt 0:01:18]} Nd3+ {[%emt 0:00:07]} 54. Kxf3 {[%emt 0:00:38]} Nc5 {[%emt 0:01:49]} 55. Nf5 {[%emt 0:00:46]} Nxb3 {[%emt 0:00:12]} 56. Nxd6 {[%emt 0:00:48]} Kc5 {[%emt 0:00:07]} 57. Nf5 {[%emt 0:00:20]} Nd2+ {[%emt 0:00:26]} 58. Kf4 {[%emt 0:00:26]} Nc4 {[%emt 0:00:15]} 59. Ne5 {[%emt 0:00:48]} Nb6 {[%emt 0:00:23]} 60. d6 {[%emt 0:00:29]} 1-0

[Event "Kragero Resort A 2020"]
[Site "Kragero"]
[Date "2020.02.21"]
[Round "5.17"]
[White "Ingebretsen, Jens E"]
[Black "Tryggestad, Andreas Garberg"]
[Result "0-1"]
[ECO "B47"]
[WhiteElo "2241"]
[BlackElo "2380"]
[Annotator "ChessBase"]
[PlyCount "98"]
[EventDate "2020.02.19"]
[EventType "swiss"]
[EventCountry "NOR"]
[SourceTitle "playchess.com"]
[Source "ChessBase"]
[SourceQuality "1"]
[TimeControl "5400+30"]

1. e4 {[%emt 0:01:07]} c5 {[%emt 0:00:00]} 2. Nf3 {[%emt 0:00:11]} e6 {[%emt 0:00:00]} 3. d4 {[%emt 0:00:05]} cxd4 {[%emt 0:00:00]} 4. Nxd4 {[%emt 0:00:06]} Nc6 {[%emt 0:00:50]} 5. Nc3 {[%emt 0:00:09]} Qc7 {[%emt 0:00:05]} 6. g3 {[%emt 0:00:22]} a6 {[%emt 0:00:17]} 7. Bg2 {[%emt 0:00:06]} Nf6 {[%emt 0:01:36]} 8. O-O {[%emt 0:00:17]} Nxd4 {[%emt 0:00:27]} 9. Qxd4 {[%emt 0:00:06]} Bc5 {[%emt 0:00:05]} 10. Bf4 {[%emt 0:00:05]} d6 {[%emt 0:00:03]} 11. Qd2 {[%emt 0:00:05]} h6 {[%emt 0:00:30]} 12. Rad1 {[%emt 0:00:20]} e5 {[%emt 0:00:07]} 13. Be3 {[%emt 0:00:05]} Be6 {[%emt 0:00:05]} 14. Bxc5 {[%emt 0:00:13]} dxc5 {[%emt 0:00:11]} 15. f4 {[%emt 0:00:57]} O-O {[%emt 0:05:25]} 16. Nd5 {[%emt 0:00:09]} Bxd5 {[%emt 0:00:11]} 17. exd5 {[%emt 0:00:01]} Qd6 {[%emt 0:00:16]} 18. fxe5 {[%emt 0:00:09]} Qxe5 {[%emt 0:00:03]} 19. d6 {[%emt 0:00:11]} Qxb2 {[%emt 0:00:04]} 20. d7 {[%emt 0:00:04]} Rad8 {[%emt 0:00:43]} 21. Bh3 {[%emt 0:01:12]} b5 {[%emt 0:03:59]} 22. Rfe1 {[%emt 0:27:31]} Qxa2 {[%emt 0:00:35]} 23. Qd3 {[%emt 0:00:15]} Qa5 {[%emt 0:07:03]} 24. Re7 {[%emt 0:08:57]} c4 {[%emt 0:01:10]} 25. Qd4 {[%emt 0:10:02]} Qc7 {[%emt 0:05:00]} 26. Rf1 {[%emt 0:04:51]} Qc6 {[%emt 0:01:42]} 27. c3 {[%emt 0:07:47]} a5 {[%emt 0:06:51]} 28. Bg2 {[%emt 0:02:40]} Qa6 {[%emt 0:00:01]} 29. g4 {[%emt 0:03:08]} b4 {[%emt 0:02:25]} 30. h4 {[%emt 0:01:27]} b3 {[%emt 0:30:56]} 31. g5 {[%emt 0:01:03]} Rxd7 {[%emt 0:07:05]} 32. Rxd7 {[%emt 0:00:41]} Nxd7 {[%emt 0:00:02]} 33. Qxd7 {[%emt 0:00:11]} Qb6+ {[%emt 0:03:41]} 34. Kh1 {[%emt 0:05:45]} b2 {[%emt 0:00:21]} 35. Be4 {[%emt 0:03:56]} Qe3 {[%emt 0:00:16]} 36. Qd5 {[%emt 0:20:08]} Qh3+ {[%emt 0:05:35]} 37. Kg1 {[%emt 0:00:01]} Qg3+ {[%emt 0:00:06]} 38. Bg2 {[%emt 0:00:05]} Qxh4 {[%emt 0:00:04]} 39. g6 {[%emt 0:00:36]} Qe7 {[%emt 0:06:47]} 40. Qxc4 {[%emt 0:01:43]} Kh8 {[%emt 0:04:25]} 41. gxf7 {[%emt 0:00:15]} Rxf7 {[%emt 0:00:18]} 42. Rd1 {[%emt 0:02:38]} Qe3+ {[%emt 0:00:56]} 43. Kh1 {[%emt 0:00:08]} Rf8 {[%emt 0:00:35]} 44. Qd4 {[%emt 0:00:46]} Qxd4 {[%emt 0:03:07]} 45. cxd4 {[%emt 0:00:06]} Rc8 {[%emt 0:00:01]} 46. Be4 {[%emt 0:00:42]} Rc1 {[%emt 0:00:02]} 47. Rg1 {[%emt 0:00:01]} a4 {[%emt 0:00:01]} 48. Kh2 {[%emt 0:01:30]} a3 {[%emt 0:01:04]} 49. Rg2 {[%emt 0:00:01]} g5 {[%emt 0:00:16]} 0-1

[Event "Kragero Resort A 2020"]
[Site "Kragero"]
[Date "2020.02.21"]
[Round "5.18"]
[White "Salimova, Nurgyul"]
[Black "Vitenberg, Noam Aviv"]
[Result "1-0"]
[ECO "D11"]
[WhiteElo "2372"]
[BlackElo "2276"]
[Annotator "ChessBase"]
[PlyCount "57"]
[EventDate "2020.02.19"]
[EventType "swiss"]
[EventCountry "NOR"]
[SourceTitle "playchess.com"]
[Source "ChessBase"]
[SourceQuality "1"]
[TimeControl "5400+30"]

1. Nf3 {[%emt 0:00:00]} d5 {[%emt 0:02:03]} 2. g3 {[%emt 0:00:08]} Nf6 {[%emt 0:02:09]} 3. Bg2 {[%emt 0:00:37]} Bf5 {[%emt 0:00:46]} 4. O-O {[%emt 0:00:33]} e6 {[%emt 0:01:05]} 5. d4 {[%emt 0:02:58]} Be7 {[%emt 0:08:00]} 6. c4 {[%emt 0:06:10]} c6 {[%emt 0:01:56]} 7. b3 {[%emt 0:02:57]} O-O {[%emt 0:06:28]} 8. Bb2 {[%emt 0:02:32]} Nbd7 {[%emt 0:03:19]} 9. Nbd2 {[%emt 0:08:45]} h6 {[%emt 0:06:44]} 10. Qc1 {[%emt 0:00:57]} a5 {[%emt 0:14:54]} 11. Ne5 {[%emt 0:05:57]} a4 {[%emt 0:08:02]} 12. Nxd7 {[%emt 0:04:49]} Qxd7 {[%emt 0:04:25]} 13. Nf3 {[%emt 0:05:54]} b5 {[%emt 0:05:29]} 14. Ne5 {[%emt 0:06:28]} Qb7 {[%emt 0:02:09]} 15. cxd5 {[%emt 0:04:48]} cxd5 {[%emt 0:00:21]} 16. Qe3 {[%emt 0:06:30]} Rfc8 {[%emt 0:02:40]} 17. bxa4 {[%emt 0:04:10]} Rxa4 {[%emt 0:06:41]} 18. Rfc1 {[%emt 0:01:18]} Ne4 {[%emt 0:01:39]} 19. Bxe4 {[%emt 0:07:47]} dxe4 {[%emt 0:09:03]} 20. Rxc8+ {[%emt 0:05:16]} Qxc8 {[%emt 0:00:01]} 21. g4 {[%emt 0:00:17]} Qc2 {[%emt 0:06:22]} 22. Rc1 {[%emt 0:07:30]} Qxb2 {[%emt 0:00:13]} 23. gxf5 {[%emt 0:02:21]} Qxd4 {[%emt 0:04:05]} 24. Rc8+ {[%emt 0:04:11]} Kh7 {[%emt 0:00:33]} 25. Nxf7 {[%emt 0:00:41]} exf5 {[%emt 0:00:59]} 26. Qg3 {[%emt 0:00:06]} Bg5 {[%emt 0:02:07]} 27. Nxg5+ {[%emt 0:00:50]} hxg5 {[%emt 0:00:03]} 28. Qh3+ {[%emt 0:00:43]} Kg6 {[%emt 0:00:04]} 29. Rc6+ {[%emt 0:00:06]} 1-0

[Event "Kragero Resort A 2020"]
[Site "Kragero"]
[Date "2020.02.21"]
[Round "5.19"]
[White "Mikalsen, Erlend"]
[Black "Aarnes, Eirik"]
[Result "1-0"]
[ECO "B86"]
[WhiteElo "2364"]
[BlackElo "1884"]
[Annotator "ChessBase"]
[PlyCount "45"]
[EventDate "2020.02.19"]
[EventType "swiss"]
[EventCountry "NOR"]
[SourceTitle "playchess.com"]
[Source "ChessBase"]
[SourceQuality "1"]
[TimeControl "5400+30"]

1. e4 {[%emt 0:00:00]} c5 {[%emt 0:00:02]} 2. Nf3 {[%emt 0:00:00]} d6 {[%emt 0:00:04]} 3. d4 {[%emt 0:00:00]} cxd4 {[%emt 0:00:05]} 4. Nxd4 {[%emt 0:00:00]} Nf6 {[%emt 0:00:06]} 5. Nc3 {[%emt 0:00:00]} a6 {[%emt 0:00:07]} 6. Bc4 {[%emt 0:00:00]} e6 {[%emt 0:00:24]} 7. Bb3 {[%emt 0:00:01]} Nbd7 {[%emt 0:00:54]} 8. f4 {[%emt 0:00:04]} Nc5 {[%emt 0:00:37]} 9. f5 {[%emt 0:00:04]} Be7 {[%emt 0:02:47]} 10. Qf3 {[%emt 0:00:06]} Qc7 {[%emt 0:08:46]} 11. Be3 {[%emt 0:02:49]} b5 {[%emt 0:03:23]} 12. a3 {[%emt 0:02:16]} O-O {[%emt 0:04:53]} 13. O-O {[%emt 0:02:17]} Kh8 {[%emt 0:15:20]} 14. Rae1 {[%emt 0:05:47]} Bb7 {[%emt 0:07:14]} 15. Bg5 {[%emt 0:05:41]} Nfxe4 {[%emt 0:07:49]} 16. Bxe7 {[%emt 0:00:29]} Nxc3 {[%emt 0:00:07]} 17. Qxc3 {[%emt 0:01:05]} Qxe7 {[%emt 0:00:07]} 18. f6 {[%emt 0:00:40]} gxf6 {[%emt 0:02:25]} 19. Nf5 {[%emt 0:00:08]} Rg8 {[%emt 0:03:08]} 20. Nxe7 {[%emt 0:02:50]} Rxg2+ {[%emt 0:00:08]} 21. Kh1 {[%emt 0:00:03]} Nxb3 {[%emt 0:07:20]} 22. Rf3 {[%emt 0:02:07]} Nd4 {[%emt 0:02:36]} 23. Qxd4 {[%emt 0:01:19]} 1-0

[Event "Kragero Resort A 2020"]
[Site "Kragero"]
[Date "2020.02.21"]
[Round "5.21"]
[White "Kjartansson, David"]
[Black "Lund, Terje"]
[Result "1/2-1/2"]
[ECO "D02"]
[WhiteElo "2356"]
[BlackElo "2086"]
[Annotator "ChessBase"]
[PlyCount "162"]
[EventDate "2020.02.19"]
[EventType "swiss"]
[EventCountry "NOR"]
[SourceTitle "playchess.com"]
[Source "ChessBase"]
[SourceQuality "1"]
[TimeControl "5400+30"]

1. d4 {[%emt 0:00:00]} d5 {[%emt 0:00:00]} 2. Bf4 {[%emt 0:00:00]} Nf6 {[%emt 0:01:04]} 3. e3 {[%emt 0:00:00]} c5 {[%emt 0:00:59]} 4. Nd2 {[%emt 0:00:41]} Nc6 {[%emt 0:00:31]} 5. c3 {[%emt 0:00:28]} e6 {[%emt 0:00:26]} 6. Ngf3 {[%emt 0:00:11]} Bd6 {[%emt 0:00:48]} 7. Bg3 {[%emt 0:00:08]} O-O {[%emt 0:00:37]} 8. Bd3 {[%emt 0:03:50]} b6 {[%emt 0:00:47]} 9. Qe2 {[%emt 0:06:09]} Bb7 {[%emt 0:06:03]} 10. Rd1 {[%emt 0:02:25]} Qe7 {[%emt 0:12:29]} 11. dxc5 {[%emt 0:03:44]} Bxc5 {[%emt 0:02:39]} 12. e4 {[%emt 0:01:36]} dxe4 {[%emt 0:09:44]} 13. Nxe4 {[%emt 0:00:19]} Nxe4 {[%emt 0:02:52]} 14. Bxe4 {[%emt 0:06:33]} Rad8 {[%emt 0:01:31]} 15. O-O {[%emt 0:00:32]} Rxd1 {[%emt 0:05:03]} 16. Rxd1 {[%emt 0:00:10]} Rd8 {[%emt 0:01:17]} 17. b4 {[%emt 0:14:40]} Bd6 {[%emt 0:02:49]} 18. Bxh7+ {[%emt 0:26:53]} Kxh7 {[%emt 0:00:19]} 19. Qd3+ {[%emt 0:00:09]} Kg8 {[%emt 0:00:30]} 20. Bxd6 {[%emt 0:00:11]} Qf6 {[%emt 0:02:40]} 21. Rd2 {[%emt 0:17:15]} e5 {[%emt 0:15:24]} 22. b5 {[%emt 0:02:44]} e4 {[%emt 0:00:57]} 23. Qxe4 {[%emt 0:01:18]} Rxd6 {[%emt 0:00:31]} 24. Rxd6 {[%emt 0:02:36]} Qxd6 {[%emt 0:00:09]} 25. bxc6 {[%emt 0:00:32]} Bxc6 {[%emt 0:00:07]} 26. Qd4 {[%emt 0:01:50]} Qe7 {[%emt 0:05:58]} 27. Ne5 {[%emt 0:01:20]} Be8 {[%emt 0:03:41]} 28. h3 {[%emt 0:00:54]} f6 {[%emt 0:01:04]} 29. Ng4 {[%emt 0:00:42]} Bf7 {[%emt 0:01:05]} 30. a4 {[%emt 0:00:28]} Be8 {[%emt 0:02:00]} 31. Ne3 {[%emt 0:01:10]} Qa3 {[%emt 0:03:06]} 32. Qc4+ {[%emt 0:02:05]} Kh8 {[%emt 0:01:28]} 33. Qh4+ {[%emt 0:00:19]} Kg8 {[%emt 0:00:07]} 34. Qc4+ {[%emt 0:00:21]} Kh8 {[%emt 0:00:55]} 35. Qc7 {[%emt 0:03:40]} Qxa4 {[%emt 0:01:13]} 36. c4 {[%emt 0:00:26]} Kg8 {[%emt 0:02:52]} 37. g4 {[%emt 0:01:12]} Qd7 {[%emt 0:03:21]} 38. Qb8 {[%emt 0:00:20]} Kh7 {[%emt 0:00:29]} 39. h4 {[%emt 0:00:18]} Bg6 {[%emt 0:00:48]} 40. h5 {[%emt 0:00:15]} Bd3 {[%emt 0:00:43]} 41. Qf4 {[%emt 0:00:51]} Qc6 {[%emt 0:01:20]} 42. Qd4 {[%emt 0:00:54]} Qe4 {[%emt 0:00:40]} 43. Qd7 {[%emt 0:00:34]} Bxc4 {[%emt 0:05:52]} 44. h6 {[%emt 0:00:32]} Kxh6 {[%emt 0:00:15]} 45. Qc8 {[%emt 0:00:36]} Bf7 {[%emt 0:00:54]} 46. Qh8+ {[%emt 0:00:12]} Kg5 {[%emt 0:00:59]} 47. Qxg7+ {[%emt 0:00:19]} Qg6 {[%emt 0:01:03]} 48. Qf8 {[%emt 0:00:10]} Be6 {[%emt 0:00:23]} 49. Qb4 {[%emt 0:00:39]} Kh6 {[%emt 0:00:31]} 50. Qf4+ {[%emt 0:01:06]} Qg5 {[%emt 0:00:32]} 51. Qe4 {[%emt 0:00:20]} Bd7 {[%emt 0:01:26]} 52. Qd4 {[%emt 0:00:30]} Be6 {[%emt 0:01:07]} 53. Qe4 {[%emt 0:00:34]} Qe5 {[%emt 0:00:39]} 54. Qa8 {[%emt 0:00:22]} Qc7 {[%emt 0:00:42]} 55. Qh8+ {[%emt 0:00:24]} Kg6 {[%emt 0:00:18]} 56. Qe8+ {[%emt 0:00:15]} Qf7 {[%emt 0:00:36]} 57. Qa8 {[%emt 0:00:31]} f5 {[%emt 0:00:24]} 58. gxf5+ {[%emt 0:00:58]} Bxf5 {[%emt 0:00:08]} 59. Qc6+ {[%emt 0:00:30]} Qe6 {[%emt 0:01:16]} 60. Qc7 {[%emt 0:00:38]} a5 {[%emt 0:00:12]} 61. Qg3+ {[%emt 0:00:28]} Kf6 {[%emt 0:00:33]} 62. Qh4+ {[%emt 0:00:10]} Kf7 {[%emt 0:00:39]} 63. Qd4 {[%emt 0:00:27]} Be4 {[%emt 0:00:49]} 64. Kf1 {[%emt 0:00:22]} Kg6 {[%emt 0:00:11]} 65. Ke1 {[%emt 0:00:35]} b5 {[%emt 0:00:08]} 66. Qc5 {[%emt 0:00:58]} Qc6 {[%emt 0:00:52]} 67. Qe7 {[%emt 0:00:00]} Bf3 {[%emt 0:00:24]} 68. Kd2 {[%emt 0:00:25]} b4 {[%emt 0:00:29]} 69. Qe5 {[%emt 0:00:11]} a4 {[%emt 0:00:47]} 70. Qf5+ {[%emt 0:00:10]} Kg7 {[%emt 0:00:41]} 71. Qg5+ {[%emt 0:00:06]} Kf8 {[%emt 0:00:21]} 72. Qf4+ {[%emt 0:00:06]} Ke8 {[%emt 0:00:23]} 73. Qxb4 {[%emt 0:00:11]} Kd7 {[%emt 0:00:26]} 74. Nc4 {[%emt 0:01:29]} Qh6+ {[%emt 0:00:39]} 75. Kc2 {[%emt 0:00:47]} Be4+ {[%emt 0:00:21]} 76. Kb2 {[%emt 0:00:13]} Qf6+ {[%emt 0:00:19]} 77. Ka2 {[%emt 0:00:47]} Qxf2+ {[%emt 0:00:21]} 78. Ka3 {[%emt 0:01:20]} Qg3+ {[%emt 0:00:36]} 79. Kxa4 {[%emt 0:00:35]} Bc6+ {[%emt 0:00:27]} 80. Ka5 {[%emt 0:00:08]} Qg5+ {[%emt 0:00:44]} 81. Ka6 {[%emt 0:00:08]} Qb5+ {[%emt 0:00:21]} 1/2-1/2